[Event "EYCC Open-U14 2019"]
[Site "Bratislava"]
[Date "2019.08.09"]
[Round "8.16"]
[White "Lopez Varela, Pablo"]
[Black "Weihrauch, Jakob"]
[Result "1/2-1/2"]
[ECO "C54"]
[WhiteElo "2131"]
[BlackElo "2201"]
[Annotator "NA"]
[PlyCount "133"]
[EventDate "2019.08.02"]
[EventType "swiss"]
[EventCountry "SVK"]
[SourceTitle "playchess.com"]
[Source "ChessBase"]
[SourceQuality "1"]
[TimeControl "40/5400+30:1800+30"]

1. e4 {[%emt 0:00:00]} e5 {[%emt 0:00:00]} 2. Nf3 {[%emt 0:00:00]} Nc6 {[%emt 0:00:00]} 3. Bc4 {[%emt 0:00:00]} Bc5 {[%emt 0:00:00]} 4. c3 {[%emt 0:00:00]} Nf6 {[%emt 0:00:00]} 5. d3 {[%emt 0:00:00]} O-O {[%emt 0:00:17]} 6. O-O {[%emt 0:00:00]} d6 {[%emt 0:00:22]} 7. h3 {[%emt 0:00:02]} h6 {[%emt 0:00:37]} 8. Re1 {[%emt 0:03:23]} a6 {[%emt 0:00:25]} 9. Bb3 {[%emt 0:00:38]} Ba7 {[%emt 0:00:12]} 10. Nbd2 {[%emt 0:00:19]} Re8 {[%emt 0:00:16]} 11. Nf1 {[%emt 0:01:01]} Be6 {[%emt 0:00:14]} 12. N3h2 {[%emt 0:02:29]} Bxb3 {[%emt 0:03:00]} 13. Qxb3 {[%emt 0:03:19]} Qd7 {[%emt 0:00:28]} 14. Be3 {[%emt 0:00:30]} d5 {[%emt 0:02:08]} 15. Bxa7 {[%emt 0:00:09]} Rxa7 {[%emt 0:03:13]} 16. Rad1 {[%emt 0:05:58]} d4 {[%emt 0:02:51]} 17. Ng3 {[%emt 0:01:28]} b5 {[%emt 0:18:24]} 18. Nf5 {[%emt 0:03:34]} Ne7 {[%emt 0:06:55]} 19. Nxe7+ {[%emt 0:03:02]} Rxe7 {[%emt 0:00:26]} 20. cxd4 {[%emt 0:00:17]} Qxd4 {[%emt 0:01:05]} 21. Nf3 {[%emt 0:00:12]} Qb6 {[%emt 0:02:20]} 22. d4 {[%emt 0:11:35]} exd4 {[%emt 0:02:03]} 23. e5 {[%emt 0:01:08]} Nd7 {[%emt 0:01:13]} 24. Rxd4 {[%emt 0:00:24]} c5 {[%emt 0:09:14]} 25. Rd6 {[%emt 0:02:38]} c4 {[%emt 0:01:43]} 26. Qd1 {[%emt 0:04:06]} Qc5 {[%emt 0:04:31]} 27. Rd5 {[%emt 0:07:11]} Qc7 {[%emt 0:04:16]} 28. Qd4 {[%emt 0:05:35]} Ra8 {[%emt 0:01:13]} 29. Nh4 {[%emt 0:01:19]} Rae8 {[%emt 0:02:21]} 30. f4 {[%emt 0:08:16]} Nf6 {[%emt 0:12:05]} 31. Rd6 {[%emt 0:07:47]} Qa7 {[%emt 0:01:23]} 32. Nf5 {[%emt 0:04:55]} Rc7 {[%emt 0:06:34]} 33. Qxa7 {[%emt 0:01:59]} Rxa7 {[%emt 0:00:01]} 34. Nxh6+ {[%emt 0:01:55]} gxh6 {[%emt 0:02:44]} 35. Rxf6 {[%emt 0:00:01]} Re6 36. Rxe6 {[%emt 0:01:27]} fxe6 {[%emt 0:00:09]} 37. Kf2 {[%emt 0:06:02]} Rd7 {[%emt 0:01:16]} 38. Ke3 {[%emt 0:00:16]} Rd3+ {[%emt 0:00:06]} 39. Ke4 {[%emt 0:00:09]} Rd2 {[%emt 0:00:17]} 40. f5 {[%emt 0:00:00]} Rxb2 {[%emt 0:00:00]} 41. fxe6 {[%emt 0:01:39]} Kf8 {[%emt 0:04:22]} 42. Rf1+ {[%emt 0:01:49]} Ke7 {[%emt 0:01:35]} 43. Rf7+ {[%emt 0:00:03]} Kxe6 {[%emt 0:00:46]} 44. Rf6+ {[%emt 0:00:01]} Kd7 {[%emt 0:00:14]} 45. Rxa6 {[%emt 0:00:05]} c3 {[%emt 0:01:29]} 46. e6+ {[%emt 0:07:03]} Ke7 {[%emt 0:12:08]} 47. Rc6 {[%emt 0:00:57]} b4 {[%emt 0:04:57]} 48. a3 {[%emt 0:00:52]} bxa3 {[%emt 0:00:42]} 49. Rxc3 {[%emt 0:00:04]} a2 {[%emt 0:00:15]} 50. Ra3 {[%emt 0:00:39]} Kxe6 {[%emt 0:00:49]} 51. Ra6+ {[%emt 0:00:06]} Kd7 {[%emt 0:02:00]} 52. g4 {[%emt 0:00:12]} Kc7 {[%emt 0:01:12]} 53. h4 {[%emt 0:01:54]} Kb7 {[%emt 0:02:17]} 54. Ra3 {[%emt 0:00:06]} Kb6 {[%emt 0:00:41]} 55. g5 {[%emt 0:00:43]} hxg5 {[%emt 0:00:09]} 56. hxg5 {[%emt 0:00:03]} Rb4+ {[%emt 0:00:40]} 57. Kf5 {[%emt 0:00:04]} Rb5+ {[%emt 0:00:31]} 58. Kf6 {[%emt 0:00:31]} Ra5 {[%emt 0:00:05]} 59. Rxa2 {[%emt 0:00:02]} Rxa2 {[%emt 0:00:19]} 60. g6 {[%emt 0:00:01]} Rf2+ {[%emt 0:01:07]} 61. Ke7 {[%emt 0:00:09]} Kc7 {[%emt 0:00:47]} 62. g7 {[%emt 0:00:16]} Re2+ {[%emt 0:00:33]} 63. Kf7 {[%emt 0:00:16]} Kd7 {[%emt 0:00:24]} 64. g8=Q {[%emt 0:00:06]} Rf2+ {[%emt 0:00:05]} 65. Kg7 {[%emt 0:00:15]} Rg2+ {[%emt 0:00:04]} 66. Kh7 {[%emt 0:00:09]} Rxg8 {[%emt 0:00:06]} 67. Kxg8 {[%emt 0:00:38]} 1/2-1/2

[Event "EYCC Open-U14 2019"]
[Site "Bratislava"]
[Date "2019.08.09"]
[Round "8.17"]
[White "Revaliente Montoya, Ciro"]
[Black "Gnojek, Petr"]
[Result "0-1"]
[ECO "B80"]
[WhiteElo "1917"]
[BlackElo "2246"]
[Annotator "NA"]
[PlyCount "86"]
[EventDate "2019.08.02"]
[EventType "swiss"]
[EventCountry "SVK"]
[SourceTitle "playchess.com"]
[Source "ChessBase"]
[SourceQuality "1"]
[TimeControl "40/5400+30:1800+30"]

1. e4 {[%emt 0:00:00]} c5 {[%emt 0:00:00]} 2. Nf3 {[%emt 0:00:00]} e6 {[%emt 0:00:00]} 3. d4 {[%emt 0:00:01]} cxd4 {[%emt 0:00:00]} 4. Nxd4 {[%emt 0:00:02]} Nf6 {[%emt 0:00:01]} 5. Nc3 {[%emt 0:00:12]} d6 {[%emt 0:00:08]} 6. Be3 {[%emt 0:01:16]} Be7 {[%emt 0:00:32]} 7. f3 {[%emt 0:00:32]} O-O {[%emt 0:00:11]} 8. Qd2 {[%emt 0:01:56]} a6 {[%emt 0:00:41]} 9. g4 {[%emt 0:02:43]} Nc6 {[%emt 0:00:39]} 10. O-O-O {[%emt 0:00:48]} Nd7 {[%emt 0:00:24]} 11. h4 {[%emt 0:03:36]} Nde5 {[%emt 0:00:42]} 12. Be2 {[%emt 0:03:31]} b5 {[%emt 0:00:43]} 13. f4 {[%emt 0:04:30]} Nxd4 {[%emt 0:00:14]} 14. Bxd4 {[%emt 0:00:08]} Nc6 {[%emt 0:00:05]} 15. Be3 {[%emt 0:02:19]} Qa5 {[%emt 0:01:35]} 16. a3 {[%emt 0:23:26]} b4 {[%emt 0:02:36]} 17. Nb1 {[%emt 0:00:10]} bxa3 {[%emt 0:00:39]} 18. Nxa3 {[%emt 0:00:07]} Qa4 {[%emt 0:01:10]} 19. Qc3 {[%emt 0:13:15]} Bd7 {[%emt 0:03:04]} 20. Bc4 {[%emt 0:07:10]} Rab8 {[%emt 0:04:38]} 21. h5 {[%emt 0:04:01]} Bf6 {[%emt 0:10:02]} 22. e5 {[%emt 0:00:58]} dxe5 {[%emt 0:00:05]} 23. g5 {[%emt 0:00:29]} Be7 {[%emt 0:04:54]} 24. Rxd7 {[%emt 0:15:52]} Bxa3 {[%emt 0:00:05]} 25. Bb3 {[%emt 0:04:25]} Qe4 26. Rhd1 {[%emt 0:02:42]} exf4 {[%emt 0:03:13]} 27. Bd4 {[%emt 0:01:20]} Bb4 {[%emt 0:00:44]} 28. Qc4 {[%emt 0:01:28]} Na5 {[%emt 0:00:21]} 29. Qd3 {[%emt 0:04:27]} Nxb3+ {[%emt 0:00:13]} 30. cxb3 {[%emt 0:00:07]} Qc6+ {[%emt 0:03:19]} 31. Bc3 {[%emt 0:00:44]} Bxc3 {[%emt 0:00:26]} 32. Qxc3 {[%emt 0:00:01]} Qxc3+ {[%emt 0:01:48]} 33. bxc3 {[%emt 0:00:02]} Rxb3 {[%emt 0:00:05]} 34. Kc2 {[%emt 0:00:11]} Rb5 {[%emt 0:00:10]} 35. Rg1 {[%emt 0:01:12]} f3 {[%emt 0:02:44]} 36. g6 {[%emt 0:01:17]} hxg6 {[%emt 0:01:37]} 37. hxg6 {[%emt 0:00:14]} f2 {[%emt 0:00:09]} 38. Rf1 {[%emt 0:01:40]} fxg6 {[%emt 0:00:06]} 39. Rd6 {[%emt 0:00:15]} Re5 {[%emt 0:00:05]} 40. Kd2 {[%emt 0:00:00]} Rd5+ {[%emt 0:00:00]} 41. Rxd5 {[%emt 0:01:09]} exd5 {[%emt 0:00:15]} 42. Ke3 {[%emt 0:00:03]} a5 {[%emt 0:00:22]} 43. Kd4 {[%emt 0:00:23]} a4 {[%emt 0:00:25]} 0-1

[Event "EYCC Open-U14 2019"]
[Site "Bratislava"]
[Date "2019.08.09"]
[Round "8.18"]
[White "Fule, Simon"]
[Black "Kalosha, Zhiulien Oleksii"]
[Result "1/2-1/2"]
[ECO "C63"]
[WhiteElo "2184"]
[BlackElo "1936"]
[Annotator "NA"]
[PlyCount "46"]
[EventDate "2019.08.02"]
[EventType "swiss"]
[EventCountry "SVK"]
[SourceTitle "playchess.com"]
[Source "ChessBase"]
[SourceQuality "1"]
[TimeControl "40/5400+30:1800+30"]

1. e4 {[%emt 0:00:00]} e5 {[%emt 0:00:00]} 2. Nf3 {[%emt 0:00:00]} Nc6 {[%emt 0:00:00]} 3. Bb5 {[%emt 0:00:00]} f5 {[%emt 0:00:07]} 4. d3 {[%emt 0:00:28]} fxe4 {[%emt 0:00:37]} 5. dxe4 {[%emt 0:00:08]} Nf6 6. O-O {[%emt 0:01:01]} Bc5 {[%emt 0:01:57]} 7. Qd3 {[%emt 0:12:04]} d6 {[%emt 0:00:48]} 8. a3 {[%emt 0:10:52]} O-O {[%emt 0:07:52]} 9. b4 {[%emt 0:05:00]} Bb6 {[%emt 0:05:17]} 10. Bc4+ {[%emt 0:04:21]} Kh8 {[%emt 0:01:10]} 11. Nc3 {[%emt 0:02:25]} Bg4 {[%emt 0:03:36]} 12. Ng5 {[%emt 0:08:14]} Qe8 {[%emt 0:01:06]} 13. h3 {[%emt 0:00:27]} Bd7 {[%emt 0:00:47]} 14. Be3 {[%emt 0:14:46]} Bxe3 {[%emt 0:05:17]} 15. Qxe3 {[%emt 0:00:11]} Nd4 {[%emt 0:00:32]} 16. Rac1 {[%emt 0:05:35]} h6 {[%emt 0:01:23]} 17. Nf3 {[%emt 0:00:14]} Nxf3+ {[%emt 0:00:24]} 18. Qxf3 {[%emt 0:00:07]} Nh5 {[%emt 0:05:50]} 19. Qe3 {[%emt 0:02:26]} Qg6 {[%emt 0:01:48]} 20. Ne2 {[%emt 0:08:35]} Rf6 {[%emt 0:07:19]} 21. Kh2 {[%emt 0:03:04]} Raf8 {[%emt 0:11:35]} 22. f3 {[%emt 0:01:00]} a6 {[%emt 0:02:02]} 23. g3 {[%emt 0:01:18]} b5 {[%emt 0:13:47]} 1/2-1/2

[Event "EYCC Open-U14 2019"]
[Site "Bratislava"]
[Date "2019.08.09"]
[Round "8.19"]
[White "Andrijashkin, Deniss"]
[Black "Kusa, Jakub"]
[Result "1/2-1/2"]
[ECO "C50"]
[WhiteElo "1862"]
[BlackElo "2199"]
[Annotator "NA"]
[PlyCount "130"]
[EventDate "2019.08.02"]
[EventType "swiss"]
[EventCountry "SVK"]
[SourceTitle "playchess.com"]
[Source "ChessBase"]
[SourceQuality "1"]
[TimeControl "40/5400+30:1800+30"]

1. e4 {[%emt 0:00:00]} e5 {[%emt 0:00:00]} 2. Nf3 {[%emt 0:00:00]} Nc6 {[%emt 0:00:00]} 3. Bc4 {[%emt 0:00:00]} Bc5 {[%emt 0:00:01]} 4. d3 {[%emt 0:00:12]} Nf6 {[%emt 0:00:22]} 5. O-O {[%emt 0:00:06]} O-O {[%emt 0:00:33]} 6. Bg5 {[%emt 0:00:45]} h6 {[%emt 0:02:15]} 7. Bh4 {[%emt 0:00:13]} g5 {[%emt 0:01:57]} 8. Bg3 {[%emt 0:00:08]} d6 {[%emt 0:00:32]} 9. c3 {[%emt 0:03:24]} Bg4 {[%emt 0:02:30]} 10. h3 {[%emt 0:03:41]} Bh5 {[%emt 0:03:29]} 11. Nbd2 {[%emt 0:01:03]} Qd7 {[%emt 0:01:59]} 12. a4 {[%emt 0:02:53]} a5 {[%emt 0:02:05]} 13. Bb5 {[%emt 0:13:33]} Kh7 {[%emt 0:09:22]} 14. Qb1 {[%emt 0:04:52]} Rg8 {[%emt 0:07:25]} 15. d4 {[%emt 0:01:39]} Ba7 {[%emt 0:02:09]} 16. d5 {[%emt 0:27:59]} Bxf3 {[%emt 0:06:45]} 17. Nxf3 {[%emt 0:01:03]} g4 {[%emt 0:00:17]} 18. Nh4 {[%emt 0:05:02]} gxh3 {[%emt 0:00:38]} 19. Nf5 {[%emt 0:07:55]} Rxg3 {[%emt 0:10:27]} 20. Nxg3 {[%emt 0:00:10]} Qg4 {[%emt 0:00:32]} 21. Qd3 {[%emt 0:09:11]} Nh5 {[%emt 0:04:28]} 22. Qf3 {[%emt 0:02:07]} Qxf3 {[%emt 0:02:43]} 23. gxf3 {[%emt 0:00:04]} Nxg3 {[%emt 0:00:09]} 24. dxc6 {[%emt 0:00:03]} Nxf1 {[%emt 0:01:00]} 25. Rxf1 {[%emt 0:00:07]} bxc6 {[%emt 0:01:38]} 26. Bxc6 {[%emt 0:00:07]} Rb8 {[%emt 0:00:30]} 27. Bb5 {[%emt 0:02:05]} c6 {[%emt 0:02:03]} 28. Bxc6 {[%emt 0:00:03]} Rxb2 {[%emt 0:00:14]} 29. Bd5 {[%emt 0:02:44]} Kg6 {[%emt 0:03:22]} 30. Kh2 {[%emt 0:00:13]} Bxf2 {[%emt 0:01:25]} 31. Kxh3 {[%emt 0:00:03]} f6 {[%emt 0:01:24]} 32. Ra1 {[%emt 0:01:04]} Be3 {[%emt 0:01:53]} 33. Ra2 {[%emt 0:01:29]} Rb1 {[%emt 0:01:27]} 34. Rg2+ {[%emt 0:00:08]} Bg5 {[%emt 0:00:49]} 35. Rc2 {[%emt 0:02:19]} h5 {[%emt 0:02:09]} 36. Be6 {[%emt 0:03:35]} Bf4 {[%emt 0:02:14]} 37. Kg2 {[%emt 0:01:14]} Kg5 {[%emt 0:01:22]} 38. Re2 {[%emt 0:02:14]} Ra1 {[%emt 0:02:15]} 39. Bb3 {[%emt 0:02:36]} h4 {[%emt 0:01:07]} 40. Ra2 {[%emt 0:00:00]} Re1 {[%emt 0:00:00]} 41. Be6 {[%emt 0:03:50]} Be3 {[%emt 0:02:53]} 42. Rb2 {[%emt 0:01:55]} Kf4 {[%emt 0:02:19]} 43. Bg4 {[%emt 0:04:04]} Rc1 {[%emt 0:01:08]} 44. Kh3 {[%emt 0:03:02]} Kg5 {[%emt 0:12:49]} 45. Rb8 {[%emt 0:05:44]} Rh1+ {[%emt 0:07:49]} 46. Kg2 {[%emt 0:00:08]} Ra1 {[%emt 0:01:47]} 47. Rg8+ {[%emt 0:02:45]} Kh6 {[%emt 0:00:39]} 48. Kh3 {[%emt 0:04:01]} Rxa4 {[%emt 0:02:13]} 49. Bf5 {[%emt 0:03:25]} Ra1 {[%emt 0:02:39]} 50. Rg6+ {[%emt 0:00:13]} Kh5 {[%emt 0:00:16]} 51. Rxf6 {[%emt 0:00:07]} Kg5 {[%emt 0:03:40]} 52. Rxd6 {[%emt 0:00:42]} a4 {[%emt 0:01:48]} 53. Be6 {[%emt 0:08:30]} Kf4 {[%emt 0:02:21]} 54. Bg4 {[%emt 0:01:28]} a3 {[%emt 0:02:59]} 55. Rf6+ {[%emt 0:00:18]} Kg5 {[%emt 0:00:07]} 56. Ra6 {[%emt 0:00:03]} a2 {[%emt 0:01:17]} 57. Kh2 {[%emt 0:00:28]} Bf2 {[%emt 0:06:55]} 58. Be6 {[%emt 0:01:16]} Bg3+ {[%emt 0:00:21]} 59. Kg2 {[%emt 0:00:09]} Rc1 {[%emt 0:01:37]} 60. Rxa2 {[%emt 0:00:13]} Rxc3 {[%emt 0:00:13]} 61. Bg4 {[%emt 0:00:30]} Kf4 {[%emt 0:01:13]} 62. Rb2 {[%emt 0:00:20]} Re3 {[%emt 0:00:19]} 63. Kh3 {[%emt 0:01:26]} Re1 {[%emt 0:00:26]} 64. Kg2 {[%emt 0:00:43]} Rxe4 65. fxe4 Kxg4 1/2-1/2

[Event "EYCC Open-U14 2019"]
[Site "Bratislava"]
[Date "2019.08.09"]
[Round "8.20"]
[White "Guz, Ari"]
[Black "Neumann, Filip"]
[Result "1-0"]
[ECO "A13"]
[WhiteElo "2165"]
[BlackElo "1982"]
[Annotator "NA"]
[PlyCount "69"]
[EventDate "2019.08.02"]
[EventType "swiss"]
[EventCountry "SVK"]
[SourceTitle "playchess.com"]
[Source "ChessBase"]
[SourceQuality "1"]
[TimeControl "40/5400+30:1800+30"]

1. c4 {[%emt 0:00:00]} e6 {[%emt 0:00:00]} 2. g3 {[%emt 0:00:00]} d5 {[%emt 0:00:00]} 3. Bg2 {[%emt 0:00:00]} Nf6 {[%emt 0:00:00]} 4. Nf3 {[%emt 0:00:00]} dxc4 {[%emt 0:00:06]} 5. Qa4+ {[%emt 0:00:07]} Nbd7 {[%emt 0:00:06]} 6. Qxc4 {[%emt 0:00:07]} c5 {[%emt 0:00:13]} 7. O-O {[%emt 0:00:14]} a6 {[%emt 0:00:52]} 8. Qc2 {[%emt 0:00:07]} b5 {[%emt 0:01:17]} 9. b3 {[%emt 0:15:06]} Bb7 {[%emt 0:01:11]} 10. Bb2 {[%emt 0:00:09]} Rc8 {[%emt 0:00:58]} 11. d3 {[%emt 0:00:56]} Be7 {[%emt 0:00:15]} 12. Nbd2 {[%emt 0:00:10]} O-O {[%emt 0:00:53]} 13. Rac1 {[%emt 0:02:31]} Nd5 {[%emt 0:08:17]} 14. Rfd1 {[%emt 0:02:43]} Bf6 {[%emt 0:01:33]} 15. Ne4 {[%emt 0:00:53]} Bxb2 {[%emt 0:04:38]} 16. Qxb2 {[%emt 0:00:02]} Qe7 {[%emt 0:01:55]} 17. Ne5 {[%emt 0:08:18]} N7f6 {[%emt 0:03:40]} 18. Nxf6+ {[%emt 0:09:07]} Nxf6 {[%emt 0:00:40]} 19. Bxb7 {[%emt 0:05:22]} Qxb7 {[%emt 0:00:12]} 20. d4 {[%emt 0:00:09]} cxd4 {[%emt 0:08:24]} 21. Qxd4 {[%emt 0:00:23]} h6 {[%emt 0:07:22]} 22. e3 {[%emt 0:07:10]} Qe4 {[%emt 0:08:41]} 23. Qxe4 {[%emt 0:03:35]} Nxe4 {[%emt 0:00:08]} 24. Rxc8 {[%emt 0:00:09]} Rxc8 {[%emt 0:00:10]} 25. Rd4 {[%emt 0:01:52]} Nc3 {[%emt 0:01:46]} 26. Rd6 {[%emt 0:02:58]} Nxa2 {[%emt 0:09:19]} 27. Rxa6 {[%emt 0:00:34]} Nc3 {[%emt 0:10:25]} 28. Ra7 {[%emt 0:03:32]} f6 {[%emt 0:01:09]} 29. Ng6 {[%emt 0:02:23]} Ne2+ {[%emt 0:12:57]} 30. Kf1 {[%emt 0:03:05]} Rc2 {[%emt 0:00:27]} 31. h4 {[%emt 0:03:26]} Nc1 {[%emt 0:06:15]} 32. h5 {[%emt 0:00:22]} e5 {[%emt 0:00:13]} 33. f4 {[%emt 0:01:37]} Nd3 {[%emt 0:07:15]} 34. f5 {[%emt 0:00:39]} Rf2+ {[%emt 0:01:47]} 35. Kg1 {[%emt 0:00:06]} 1-0

[Event "EYCC Open-U14 2019"]
[Site "Bratislava"]
[Date "2019.08.09"]
[Round "8.21"]
[White "Grzesik, Gracjan"]
[Black "Musyuk, Lior"]
[Result "0-1"]
[ECO "A22"]
[WhiteElo "2004"]
[BlackElo "2236"]
[Annotator "NA"]
[PlyCount "72"]
[EventDate "2019.08.02"]
[EventType "swiss"]
[EventCountry "SVK"]
[SourceTitle "playchess.com"]
[Source "ChessBase"]
[SourceQuality "1"]
[TimeControl "40/5400+30:1800+30"]

1. c4 {[%emt 0:00:00]} e5 {[%emt 0:00:00]} 2. Nc3 {[%emt 0:00:00]} Nf6 {[%emt 0:00:04]} 3. g3 {[%emt 0:00:00]} d5 {[%emt 0:00:20]} 4. cxd5 {[%emt 0:00:06]} Nxd5 {[%emt 0:00:11]} 5. Bg2 {[%emt 0:00:16]} Nb6 {[%emt 0:00:25]} 6. Nf3 {[%emt 0:00:38]} Nc6 {[%emt 0:00:22]} 7. d3 {[%emt 0:00:32]} Be7 {[%emt 0:00:33]} 8. O-O {[%emt 0:00:28]} O-O {[%emt 0:00:14]} 9. Be3 {[%emt 0:08:33]} Be6 {[%emt 0:01:40]} 10. a3 {[%emt 0:02:24]} a5 {[%emt 0:01:01]} 11. Rc1 {[%emt 0:04:31]} f5 {[%emt 0:01:56]} 12. Qc2 {[%emt 0:17:27]} f4 {[%emt 0:18:08]} 13. Bxb6 {[%emt 0:15:18]} cxb6 {[%emt 0:00:15]} 14. Qa4 {[%emt 0:06:39]} g5 {[%emt 0:12:27]} 15. Qe4 {[%emt 0:24:47]} Bf5 {[%emt 0:18:00]} 16. Qd5+ {[%emt 0:04:51]} Qxd5 {[%emt 0:00:24]} 17. Nxd5 {[%emt 0:00:02]} Bd8 {[%emt 0:00:29]} 18. Rfe1 {[%emt 0:06:21]} g4 {[%emt 0:11:03]} 19. Nd2 {[%emt 0:01:49]} Be6 {[%emt 0:05:34]} 20. Be4 {[%emt 0:01:34]} Rc8 {[%emt 0:04:02]} 21. e3 {[%emt 0:02:39]} fxe3 {[%emt 0:05:02]} 22. fxe3 {[%emt 0:00:15]} b5 {[%emt 0:00:39]} 23. Kg2 {[%emt 0:00:59]} Bg5 {[%emt 0:01:26]} 24. Nc3 {[%emt 0:01:09]} b4 {[%emt 0:03:50]} 25. Na4 {[%emt 0:00:36]} Ne7 {[%emt 0:02:20]} 26. Nc5 {[%emt 0:00:28]} Bd5 {[%emt 0:01:05]} 27. Nd7 {[%emt 0:00:30]} Rfd8 {[%emt 0:02:15]} 28. Nxe5 {[%emt 0:00:30]} Rxc1 {[%emt 0:00:55]} 29. Rxc1 {[%emt 0:00:02]} Bxe3 {[%emt 0:00:13]} 30. Rc7 {[%emt 0:01:00]} Bxd2 {[%emt 0:04:04]} 31. Rxe7 {[%emt 0:00:06]} Bxe4+ {[%emt 0:01:31]} 32. dxe4 {[%emt 0:00:01]} Bc3 {[%emt 0:02:52]} 33. bxc3 {[%emt 0:01:13]} bxa3 {[%emt 0:00:19]} 34. Rf7 {[%emt 0:00:41]} Rd2+ {[%emt 0:00:26]} 35. Kg1 {[%emt 0:00:25]} Rd1+ {[%emt 0:00:20]} 36. Kg2 {[%emt 0:00:30]} a2 {[%emt 0:00:21]} 0-1

[Event "EYCC Open-U14 2019"]
[Site "Bratislava"]
[Date "2019.08.09"]
[Round "8.22"]
[White "Vojta, Jakub"]
[Black "Poltorak, Sebastian"]
[Result "1/2-1/2"]
[ECO "B33"]
[WhiteElo "2238"]
[BlackElo "2068"]
[Annotator "NA"]
[PlyCount "86"]
[EventDate "2019.08.02"]
[EventType "swiss"]
[EventCountry "SVK"]
[SourceTitle "playchess.com"]
[Source "ChessBase"]
[SourceQuality "1"]
[TimeControl "40/5400+30:1800+30"]

1. e4 {[%emt 0:00:00]} c5 {[%emt 0:00:00]} 2. Nf3 {[%emt 0:00:00]} Nc6 {[%emt 0:00:00]} 3. d4 {[%emt 0:00:00]} cxd4 {[%emt 0:00:00]} 4. Nxd4 {[%emt 0:00:00]} Nf6 {[%emt 0:00:00]} 5. Nc3 {[%emt 0:00:00]} e5 {[%emt 0:00:06]} 6. Ndb5 {[%emt 0:00:00]} d6 {[%emt 0:00:09]} 7. Bg5 {[%emt 0:00:05]} a6 {[%emt 0:00:09]} 8. Na3 {[%emt 0:00:03]} b5 {[%emt 0:00:17]} 9. Nd5 {[%emt 0:00:04]} Be7 {[%emt 0:00:13]} 10. Bxf6 {[%emt 0:00:02]} Bxf6 {[%emt 0:00:11]} 11. c4 {[%emt 0:00:05]} b4 {[%emt 0:04:15]} 12. Nc2 {[%emt 0:00:05]} a5 {[%emt 0:02:44]} 13. g3 {[%emt 0:00:26]} O-O {[%emt 0:04:50]} 14. Bg2 {[%emt 0:01:03]} Be6 {[%emt 0:07:58]} 15. O-O {[%emt 0:08:24]} Rc8 {[%emt 0:03:07]} 16. b3 {[%emt 0:03:01]} Bxd5 {[%emt 0:04:34]} 17. Qxd5 {[%emt 0:03:18]} Nd4 {[%emt 0:02:50]} 18. Nxd4 {[%emt 0:00:34]} exd4 {[%emt 0:00:19]} 19. Qh5 {[%emt 0:00:43]} Rc5 {[%emt 0:01:02]} 20. Qd1 {[%emt 0:01:24]} Qb6 {[%emt 0:04:56]} 21. Qd3 {[%emt 0:02:27]} g6 {[%emt 0:04:06]} 22. f4 {[%emt 0:01:24]} Re8 {[%emt 0:02:35]} 23. Rae1 {[%emt 0:02:54]} Qa7 {[%emt 0:02:38]} 24. Kh1 {[%emt 0:03:54]} Qd7 {[%emt 0:05:15]} 25. h4 {[%emt 0:05:06]} h6 {[%emt 0:04:30]} 26. Kh2 {[%emt 0:03:01]} Kg7 {[%emt 0:02:32]} 27. Rf2 {[%emt 0:06:53]} Re7 {[%emt 0:08:40]} 28. Ref1 {[%emt 0:08:01]} Kh7 {[%emt 0:05:29]} 29. Qf3 {[%emt 0:03:54]} Qc8 30. Rd2 {[%emt 0:00:53]} Bg7 {[%emt 0:12:31]} 31. Qf2 {[%emt 0:08:10]} f5 {[%emt 0:03:00]} 32. exf5 {[%emt 0:04:33]} Qxf5 {[%emt 0:00:12]} 33. Rfd1 {[%emt 0:04:47]} Rcc7 {[%emt 0:04:43]} 34. Bf1 {[%emt 0:03:43]} Re3 {[%emt 0:02:26]} 35. Bd3 {[%emt 0:00:47]} Qc5 {[%emt 0:01:38]} 36. Re2 {[%emt 0:07:21]} Rce7 {[%emt 0:00:41]} 37. Rxe3 {[%emt 0:01:04]} Rxe3 {[%emt 0:00:20]} 38. g4 {[%emt 0:01:19]} h5 {[%emt 0:01:08]} 39. Qg2 {[%emt 0:06:00]} a4 {[%emt 0:07:55]} 40. g5 {[%emt 0:00:00]} axb3 {[%emt 0:00:00]} 41. axb3 {[%emt 0:02:27]} Qc8 {[%emt 0:02:51]} 42. Bb1 {[%emt 0:12:07]} Qe6 {[%emt 0:05:24]} 43. Bd3 {[%emt 0:00:39]} Qe7 {[%emt 0:03:35]} 1/2-1/2

[Event "EYCC Open-U14 2019"]
[Site "Bratislava"]
[Date "2019.08.09"]
[Round "8.23"]
[White "Razafindratsima, Timothe"]
[Black "Danaci, Ege"]
[Result "1-0"]
[ECO "B18"]
[WhiteElo "2178"]
[BlackElo "1976"]
[Annotator "NA"]
[PlyCount "79"]
[EventDate "2019.08.02"]
[EventType "swiss"]
[EventCountry "SVK"]
[SourceTitle "playchess.com"]
[Source "ChessBase"]
[SourceQuality "1"]
[TimeControl "40/5400+30:1800+30"]

1. e4 {[%emt 0:00:00]} c6 {[%emt 0:00:00]} 2. d4 {[%emt 0:00:00]} d5 {[%emt 0:00:07]} 3. Nc3 {[%emt 0:00:00]} dxe4 {[%emt 0:01:28]} 4. Nxe4 {[%emt 0:00:00]} Bf5 {[%emt 0:00:13]} 5. Ng3 {[%emt 0:00:00]} Bg6 {[%emt 0:01:02]} 6. Nh3 {[%emt 0:00:01]} e6 {[%emt 0:09:49]} 7. c3 {[%emt 0:02:20]} Nf6 {[%emt 0:12:28]} 8. Nf4 {[%emt 0:00:10]} Bd6 {[%emt 0:00:21]} 9. h4 {[%emt 0:00:09]} Nd5 {[%emt 0:03:16]} 10. Nxd5 {[%emt 0:05:42]} Bxg3 {[%emt 0:01:45]} 11. h5 {[%emt 0:01:08]} Be4 {[%emt 0:03:19]} 12. Ne3 {[%emt 0:01:14]} Bf4 {[%emt 0:04:52]} 13. Qg4 {[%emt 0:00:26]} Qf6 {[%emt 0:04:52]} 14. f3 {[%emt 0:24:23]} Bxe3 {[%emt 0:00:19]} 15. Bxe3 {[%emt 0:00:04]} Bf5 {[%emt 0:01:38]} 16. Qf4 {[%emt 0:00:31]} Nd7 {[%emt 0:11:26]} 17. g4 {[%emt 0:12:31]} Bc2 {[%emt 0:00:03]} 18. Rh2 {[%emt 0:00:41]} Qxf4 {[%emt 0:01:13]} 19. Bxf4 {[%emt 0:00:16]} Ba4 {[%emt 0:00:01]} 20. c4 {[%emt 0:10:26]} c5 {[%emt 0:07:00]} 21. d5 {[%emt 0:00:52]} Nb6 {[%emt 0:03:04]} 22. b3 {[%emt 0:03:45]} Bd7 {[%emt 0:00:26]} 23. Bd6 {[%emt 0:00:07]} exd5 {[%emt 0:09:53]} 24. cxd5 {[%emt 0:00:51]} O-O-O {[%emt 0:01:04]} 25. Rc2 {[%emt 0:06:34]} Nxd5 {[%emt 0:03:01]} 26. Rxc5+ {[%emt 0:00:41]} Bc6 {[%emt 0:00:12]} 27. Bg3 {[%emt 0:00:15]} Nb4 {[%emt 0:03:20]} 28. Rc3 {[%emt 0:01:07]} Rhe8+ {[%emt 0:00:16]} 29. Kf2 {[%emt 0:00:12]} Rd2+ {[%emt 0:01:43]} 30. Kg1 {[%emt 0:00:06]} Rxa2 {[%emt 0:08:27]} 31. Rd1 {[%emt 0:01:04]} Rc2 {[%emt 0:00:29]} 32. Rxc2 {[%emt 0:00:24]} Nxc2 {[%emt 0:00:02]} 33. g5 {[%emt 0:00:28]} Ne3 {[%emt 0:00:56]} 34. Bh3+ {[%emt 0:00:09]} Re6 {[%emt 0:00:27]} 35. Re1 {[%emt 0:02:36]} Nc2 {[%emt 0:00:51]} 36. g6 {[%emt 0:02:04]} hxg6 {[%emt 0:02:08]} 37. hxg6 {[%emt 0:01:16]} Kd8 {[%emt 0:01:46]} 38. Bh4+ {[%emt 0:01:40]} Kc7 {[%emt 0:02:28]} 39. gxf7 {[%emt 0:04:14]} Rg6+ {[%emt 0:00:25]} 40. Kf2 {[%emt 0:00:00]} 1-0